[Event "*** Titled Tuesday Blitz"]
[Site "Chess.com"]
[Date "2019.12.03"]
[Round "4"]
[White "Supernotar"]
[Black "Vugar_Manafov"]
[Result "1-0"]
[WhiteElo "2633"]
[BlackElo "2521"]
[TimeControl "180+2"]
[EndTime "13:55:46 PST"]
[Termination "Supernotar won by resignation"]

1. d4 {[%clk 0:03:01.9]} 1... Nf6 {[%clk 0:02:58.9]} 2. c4 {[%clk 0:02:59.3]}
2... e6 {[%clk 0:02:58.5]} 3. Nf3 {[%clk 0:03:00.4]} 3... Bb4+ {[%clk
0:02:56.5]} 4. Nbd2 {[%clk 0:03:01.1]} 4... O-O {[%clk 0:02:53.5]} 5. g3 {[%clk
0:03:01.7]} 5... d6 {[%clk 0:02:50.4]} 6. Bg2 {[%clk 0:03:01.4]} 6... Nc6 {[%clk
0:02:51.3]} 7. O-O {[%clk 0:03:00.6]} 7... e5 {[%clk 0:02:50.9]} 8. Nb3 {[%clk
0:02:58.4]} 8... exd4 {[%clk 0:02:48.1]} 9. Nfxd4 {[%clk 0:02:58.1]} 9... Nxd4
{[%clk 0:02:44.8]} 10. Qxd4 {[%clk 0:02:49.4]} 10... Nd7 {[%clk 0:02:32.4]} 11.
a3 {[%clk 0:02:30.7]} 11... Nc5 {[%clk 0:02:31.6]} 12. Nxc5 {[%clk 0:02:16.7]}
12... Bxc5 {[%clk 0:02:28.8]} 13. Qc3 {[%clk 0:02:17.7]} 13... a5 {[%clk
0:02:27.6]} 14. b3 {[%clk 0:02:15.8]} 14... Re8 {[%clk 0:01:49.4]} 15. e3 {[%clk
0:02:11.1]} 15... Qf6 {[%clk 0:01:11.8]} 16. Qxf6 {[%clk 0:02:05.7]} 16... gxf6
{[%clk 0:01:12.5]} 17. Bb2 {[%clk 0:02:02.8]} 17... Kg7 {[%clk 0:01:11.7]} 18.
Rfd1 {[%clk 0:01:59.4]} 18... Be6 {[%clk 0:01:11.1]} 19. Bxb7 {[%clk 0:01:29.7]}
19... Rab8 {[%clk 0:01:10.7]} 20. Bc6 {[%clk 0:01:30.5]} 20... Re7 {[%clk
0:01:11.2]} 21. Bb5 {[%clk 0:01:27.6]} 21... c6 {[%clk 0:01:08.3]} 22. Bxc6
{[%clk 0:01:28.2]} 22... Rxb3 {[%clk 0:01:08.9]} 23. Bd4 {[%clk 0:00:56.5]}
23... Rc7 {[%clk 0:00:46.7]} 24. Bxc5 {[%clk 0:00:47.1]} 24... Rxc6 {[%clk
0:00:40.7]} 25. Bxd6 {[%clk 0:00:47.5]} 25... Rxc4 {[%clk 0:00:40.6]} 26. Rac1
{[%clk 0:00:37.2]} 26... Rxc1 {[%clk 0:00:39.8]} 27. Rxc1 {[%clk 0:00:37.8]}
27... Rb2 {[%clk 0:00:40.9]} 28. h4 {[%clk 0:00:31.2]} 28... Bd5 {[%clk
0:00:39.6]} 29. Bc5 {[%clk 0:00:19.2]} 29... Bf3 {[%clk 0:00:36.3]} 30. Bd4
{[%clk 0:00:17.9]} 30... Ra2 {[%clk 0:00:34.1]} 31. Ra1 {[%clk 0:00:18.7]} 31...
Rc2 {[%clk 0:00:33.6]} 32. a4 {[%clk 0:00:17.1]} 32... Rc4 {[%clk 0:00:21.8]}
33. Bb6 {[%clk 0:00:17.2]} 33... Bc6 {[%clk 0:00:21.8]} 34. Bxa5 {[%clk
0:00:18.1]} 34... Bxa4 {[%clk 0:00:22.4]} 35. Bb6 {[%clk 0:00:18.6]} 35... Bc6
{[%clk 0:00:22.3]} 36. Bd4 {[%clk 0:00:19]} 36... Bf3 {[%clk 0:00:22.6]} 37. Re1
{[%clk 0:00:18]} 37... h5 {[%clk 0:00:20.6]} 38. Rf1 {[%clk 0:00:17.3]} 38...
Kg6 {[%clk 0:00:19.9]} 39. Ra1 {[%clk 0:00:18]} 39... Kg7 {[%clk 0:00:18.8]} 40.
Kf1 {[%clk 0:00:18.6]} 40... Rc2 {[%clk 0:00:16.3]} 41. Ke1 {[%clk 0:00:18]}
41... Re2+ {[%clk 0:00:16.1]} 42. Kf1 {[%clk 0:00:18.7]} 42... Rc2 {[%clk
0:00:17.6]} 43. Rb1 {[%clk 0:00:15.4]} 43... Kg6 {[%clk 0:00:18.1]} 44. Ra1
{[%clk 0:00:14.9]} 44... Kf5 {[%clk 0:00:17]} 45. Kg1 {[%clk 0:00:13.5]} 45...
Rc6 {[%clk 0:00:14]} 46. Rb1 {[%clk 0:00:11.3]} 46... Kg6 {[%clk 0:00:10.6]} 47.
Re1 {[%clk 0:00:11.3]} 47... Rc4 {[%clk 0:00:09.6]} 48. Rf1 {[%clk 0:00:11.9]}
48... Kf5 {[%clk 0:00:09.7]} 49. Re1 {[%clk 0:00:13]} 49... Kg6 {[%clk
0:00:10.5]} 50. Rf1 {[%clk 0:00:14.3]} 50... Kf5 {[%clk 0:00:11.7]} 51. Ra1
{[%clk 0:00:14.4]} 51... Kg6 {[%clk 0:00:11.7]} 52. Re1 {[%clk 0:00:15.3]} 52...
Kf5 {[%clk 0:00:12.9]} 53. Rb1 {[%clk 0:00:15.6]} 53... Kg6 {[%clk 0:00:12.7]}
54. g4 {[%clk 0:00:16]} 54... hxg4 {[%clk 0:00:11.4]} 55. Kh2 {[%clk 0:00:16.2]}
55... f5 {[%clk 0:00:11.9]} 56. Kg3 {[%clk 0:00:16.5]} 56... Be4 {[%clk
0:00:12.8]} 57. Rb6+ {[%clk 0:00:14.7]} 57... Rc6 {[%clk 0:00:12.2]} 58. Rb8
{[%clk 0:00:15.6]} 58... Rc1 {[%clk 0:00:12]} 59. Rb6+ {[%clk 0:00:10.9]} 59...
Kh7 {[%clk 0:00:06.2]} 60. Kf4 {[%clk 0:00:10.8]} 60... Rf1 {[%clk 0:00:06.6]}
61. Kg5 {[%clk 0:00:11.3]} 61... Rxf2 {[%clk 0:00:06.9]} 62. Rh6+ {[%clk
0:00:11.3]} 1-0

[Event "*** Titled Tuesday Blitz"]
[Site "Chess.com"]
[Date "2019.12.03"]
[Round "4"]
[White "bascheyaro"]
[Black "Man-Chuk"]
[Result "1/2-1/2"]
[WhiteElo "2767"]
[BlackElo "2927"]
[TimeControl "180+2"]
[EndTime "13:56:10 PST"]
[Termination "Game drawn by repetition"]

1. d4 {[%clk 0:03:01.9]} 1... Nf6 {[%clk 0:02:59.3]} 2. c4 {[%clk 0:03:02.6]}
2... e6 {[%clk 0:03:00.3]} 3. Nf3 {[%clk 0:03:04]} 3... d5 {[%clk 0:03:01.6]} 4.
Nc3 {[%clk 0:03:05.1]} 4... Bb4 {[%clk 0:03:03.1]} 5. Bg5 {[%clk 0:03:05.7]}
5... h6 {[%clk 0:03:03.7]} 6. Bh4 {[%clk 0:03:06.7]} 6... dxc4 {[%clk
0:03:03.2]} 7. e3 {[%clk 0:03:07.6]} 7... b5 {[%clk 0:03:02.4]} 8. Ne5 {[%clk
0:03:07]} 8... Bb7 {[%clk 0:02:59.4]} 9. a4 {[%clk 0:03:03.1]} 9... a6 {[%clk
0:02:52.8]} 10. axb5 {[%clk 0:03:00.4]} 10... axb5 {[%clk 0:02:52.2]} 11. Rxa8
{[%clk 0:03:00.4]} 11... Bxa8 {[%clk 0:02:52]} 12. Bxc4 {[%clk 0:02:37.8]} 12...
Bxg2 {[%clk 0:02:01]} 13. Bxb5+ {[%clk 0:02:19.8]} 13... c6 {[%clk 0:02:01.9]}
14. Rg1 {[%clk 0:02:21.2]} 14... cxb5 {[%clk 0:01:48.9]} 15. Bxf6 {[%clk
0:01:53.2]} 15... gxf6 {[%clk 0:01:42.7]} 16. Nxf7 {[%clk 0:01:54.3]} 16... Kxf7
{[%clk 0:01:10.4]} 17. Qh5+ {[%clk 0:01:54.6]} 17... Kf8 {[%clk 0:00:55.3]} 18.
Rxg2 {[%clk 0:01:55.1]} 18... Qc7 {[%clk 0:00:50.6]} 19. Qxb5 {[%clk 0:01:33.8]}
19... Bxc3+ {[%clk 0:00:47.9]} 20. bxc3 {[%clk 0:01:35]} 20... Qxc3+ {[%clk
0:00:33.7]} 21. Kd1 {[%clk 0:01:36.2]} 21... Qc7 {[%clk 0:00:33.8]} 22. Rg6
{[%clk 0:01:24.7]} 22... Nd7 {[%clk 0:00:34.7]} 23. Qh5 {[%clk 0:01:22.5]} 23...
Qc4 {[%clk 0:00:20.6]} 24. Ke1 {[%clk 0:01:10.5]} 24... Qc1+ {[%clk 0:00:21.6]}
25. Ke2 {[%clk 0:01:11.8]} 25... Qc2+ {[%clk 0:00:23]} 26. Kf1 {[%clk
0:01:12.4]} 26... Qf5 {[%clk 0:00:24.1]} 27. Qxf5 {[%clk 0:01:06.9]} 27... exf5
{[%clk 0:00:26]} 28. Ke2 {[%clk 0:01:02.4]} 28... Kf7 {[%clk 0:00:25.4]} 29. Rg1
{[%clk 0:01:03.5]} 29... Rg8 {[%clk 0:00:16.1]} 30. Ra1 {[%clk 0:01:04.2]} 30...
Rg2 {[%clk 0:00:17.3]} 31. Rh1 {[%clk 0:01:05.3]} 31... Rg4 {[%clk 0:00:14.9]}
32. Kf3 {[%clk 0:01:06.5]} 32... Nf8 {[%clk 0:00:12.8]} 33. h3 {[%clk
0:01:07.5]} 33... Rg5 {[%clk 0:00:12.9]} 34. Ra1 {[%clk 0:01:07.7]} 34... Ng6
{[%clk 0:00:12.7]} 35. Ra7+ {[%clk 0:01:06]} 35... Ke6 {[%clk 0:00:07.8]} 36.
Ra6+ {[%clk 0:01:07.3]} 36... Ke7 {[%clk 0:00:08.1]} 37. Ra7+ {[%clk 0:01:08.6]}
37... Ke6 {[%clk 0:00:09.6]} 38. Ra6+ {[%clk 0:01:09.9]} 38... Kf7 {[%clk
0:00:11.2]} 39. Ra7+ {[%clk 0:01:11.1]} 39... Ne7 {[%clk 0:00:12.7]} 40. Rb7
{[%clk 0:00:39.3]} 40... Rg8 {[%clk 0:00:13.5]} 41. Kf4 {[%clk 0:00:38.8]} 41...
Rd8 {[%clk 0:00:14.3]} 42. Ra7 {[%clk 0:00:39.7]} 42... Rc8 {[%clk 0:00:15.3]}
43. Rb7 {[%clk 0:00:38.8]} 43... Rc2 {[%clk 0:00:15.8]} 44. Kf3 {[%clk
0:00:39.3]} 44... Ke6 {[%clk 0:00:16.9]} 45. Rb6+ {[%clk 0:00:40.7]} 45... Rc6
{[%clk 0:00:18]} 46. Rb5 {[%clk 0:00:41.9]} 46... Ra6 {[%clk 0:00:17.3]} 47. Rb8
{[%clk 0:00:42.3]} 47... Kf7 {[%clk 0:00:17.8]} 48. Rb7 {[%clk 0:00:43.5]} 48...
Ra5 {[%clk 0:00:18.2]} 49. Kf4 {[%clk 0:00:43.1]} 49... Rd5 {[%clk 0:00:17.9]}
50. h4 {[%clk 0:00:42]} 50... Ke6 {[%clk 0:00:18.3]} 51. h5 {[%clk 0:00:42.9]}
51... Rd7 {[%clk 0:00:11.4]} 52. Rb8 {[%clk 0:00:41.9]} 52... Nd5+ {[%clk
0:00:11.4]} 53. Kf3 {[%clk 0:00:43.2]} 53... Kf7 {[%clk 0:00:11.9]} 54. Rb5
{[%clk 0:00:41.6]} 54... Ke6 {[%clk 0:00:11.5]} 55. Rb8 {[%clk 0:00:42.5]} 55...
Kf7 {[%clk 0:00:09.1]} 56. Rb5 {[%clk 0:00:43.2]} 56... Kg7 {[%clk 0:00:08.2]}
57. Ra5 {[%clk 0:00:42.4]} 57... Kf8 {[%clk 0:00:06.2]} 58. Rb5 {[%clk
0:00:41.9]} 58... Kf7 {[%clk 0:00:07.3]} 59. Ra5 {[%clk 0:00:43.3]} 59... Ne7
{[%clk 0:00:08.4]} 60. Kf4 {[%clk 0:00:44.3]} 60... Rc7 {[%clk 0:00:09.7]} 61.
f3 {[%clk 0:00:45.2]} 61... Rd7 {[%clk 0:00:08.5]} 62. Kg3 {[%clk 0:00:41.9]}
62... Nd5 {[%clk 0:00:07.4]} 63. Kf2 {[%clk 0:00:39.1]} 63... Ke6 {[%clk
0:00:06.1]} 64. e4 {[%clk 0:00:38.9]} 64... fxe4 {[%clk 0:00:06.5]} 65. fxe4
{[%clk 0:00:40.3]} 65... Ne7 {[%clk 0:00:07.7]} 66. Ke3 {[%clk 0:00:40.9]} 66...
Rb7 {[%clk 0:00:09.1]} 67. Ra6+ {[%clk 0:00:41.5]} 67... Kf7 {[%clk 0:00:10.6]}
68. d5 {[%clk 0:00:42.2]} 68... Rb3+ {[%clk 0:00:05.8]} 69. Kf4 {[%clk
0:00:43.1]} 69... Rb7 {[%clk 0:00:04.5]} 70. Ra8 {[%clk 0:00:38.8]} 70... Rd7
{[%clk 0:00:05]} 71. Ra6 {[%clk 0:00:38.7]} 71... Nc8 {[%clk 0:00:05.9]} 72. Rc6
{[%clk 0:00:35.4]} 72... Nd6 {[%clk 0:00:06.8]} 73. e5 {[%clk 0:00:36.9]} 73...
fxe5+ {[%clk 0:00:07.1]} 74. Kxe5 {[%clk 0:00:38.8]} 74... Ke7 {[%clk
0:00:08.6]} 75. Ra6 {[%clk 0:00:39.2]} 75... Nf7+ {[%clk 0:00:09.9]} 76. Kd4
{[%clk 0:00:39.3]} 76... Rd6 {[%clk 0:00:09.3]} 77. Ra7+ {[%clk 0:00:40.3]}
77... Rd7 {[%clk 0:00:09.1]} 78. Ra6 {[%clk 0:00:41.3]} 78... Nd6 {[%clk
0:00:09.2]} 79. Ke5 {[%clk 0:00:42.4]} 79... Nf7+ {[%clk 0:00:08.2]} 80. Kd4
{[%clk 0:00:41.8]} 1/2-1/2

[Event "*** Titled Tuesday Blitz"]
[Site "Chess.com"]
[Date "2019.12.03"]
[Round "4"]
[White "Alexander_Moskalenko"]
[Black "SONOFHOLYGOD"]
[Result "1/2-1/2"]
[WhiteElo "2828"]
[BlackElo "2516"]
[TimeControl "180+2"]
[EndTime "13:56:23 PST"]
[Termination "Game drawn by repetition"]

1. c4 {[%clk 0:02:48.7]} 1... Nf6 {[%clk 0:02:58.3]} 2. Nc3 {[%clk 0:02:48.6]}
2... e5 {[%clk 0:02:51.3]} 3. Nf3 {[%clk 0:02:45.8]} 3... d6 {[%clk 0:02:49.3]}
4. g3 {[%clk 0:02:39.1]} 4... g6 {[%clk 0:02:48.9]} 5. Bg2 {[%clk 0:02:40.6]}
5... Bg7 {[%clk 0:02:49.7]} 6. O-O {[%clk 0:02:42.3]} 6... O-O {[%clk
0:02:50.9]} 7. d4 {[%clk 0:02:44]} 7... Nfd7 {[%clk 0:02:51.5]} 8. Bg5 {[%clk
0:02:42.9]} 8... f6 {[%clk 0:02:52.6]} 9. Bd2 {[%clk 0:02:37.6]} 9... Nc6 {[%clk
0:02:52.5]} 10. d5 {[%clk 0:02:38.9]} 10... Ne7 {[%clk 0:02:53.3]} 11. e4 {[%clk
0:02:40.6]} 11... a5 {[%clk 0:02:51.8]} 12. a3 {[%clk 0:02:38.9]} 12... h6
{[%clk 0:02:48.4]} 13. Ne1 {[%clk 0:02:39.8]} 13... Kh7 {[%clk 0:02:49.2]} 14.
Nd3 {[%clk 0:02:40.9]} 14... f5 {[%clk 0:02:49]} 15. b4 {[%clk 0:02:30.8]} 15...
b6 {[%clk 0:02:47.1]} 16. Rc1 {[%clk 0:02:27.1]} 16... Nf6 {[%clk 0:02:47.8]}
17. c5 {[%clk 0:02:23.1]} 17... axb4 {[%clk 0:02:47.4]} 18. axb4 {[%clk
0:02:23.6]} 18... bxc5 {[%clk 0:02:48.1]} 19. bxc5 {[%clk 0:02:25.5]} 19... Ba6
{[%clk 0:02:48.3]} 20. Qc2 {[%clk 0:02:19.7]} 20... fxe4 {[%clk 0:02:42]} 21.
Nxe4 {[%clk 0:02:19.9]} 21... Nexd5 {[%clk 0:02:32]} 22. Nxf6+ {[%clk
0:02:18.9]} 22... Nxf6 {[%clk 0:02:33.2]} 23. cxd6 {[%clk 0:02:15.6]} 23... cxd6
{[%clk 0:02:25.8]} 24. Bxa8 {[%clk 0:02:13]} 24... Qxa8 {[%clk 0:02:27.7]} 25.
Rfe1 {[%clk 0:02:12.2]} 25... Qf3 {[%clk 0:02:17.3]} 26. Re3 {[%clk 0:02:11.1]}
26... Qh5 {[%clk 0:02:14.8]} 27. h4 {[%clk 0:01:39]} 27... Ng4 {[%clk
0:02:10.8]} 28. Re2 {[%clk 0:01:40]} 28... Qf5 {[%clk 0:01:54.9]} 29. Nf4 {[%clk
0:01:18]} 29... Bxe2 {[%clk 0:01:17.8]} 30. Qxf5 {[%clk 0:01:16.4]} 30... Rxf5
{[%clk 0:01:19.7]} 31. Nxe2 {[%clk 0:01:18]} 31... Rxf2 {[%clk 0:01:20]} 32. Re1
{[%clk 0:01:18.7]} 32... e4 {[%clk 0:00:44.1]} 33. Bb4 {[%clk 0:01:15.2]} 33...
d5 {[%clk 0:00:39.4]} 34. Bc5 {[%clk 0:01:16.1]} 34... Rf3 {[%clk 0:00:37.4]}
35. Kg2 {[%clk 0:01:09]} 35... Ne3+ {[%clk 0:00:36.4]} 36. Kh2 {[%clk 0:01:03]}
36... Nf5 {[%clk 0:00:36.2]} 37. Nf4 {[%clk 0:00:52]} 37... Rxg3 {[%clk
0:00:25.8]} 38. Nxd5 {[%clk 0:00:52.2]} 38... Be5 {[%clk 0:00:24.9]} 39. Kh1
{[%clk 0:00:41.7]} 39... Rh3+ {[%clk 0:00:23.4]} 40. Kg2 {[%clk 0:00:41.6]}
40... Rxh4 {[%clk 0:00:24.5]} 41. Rb1 {[%clk 0:00:43.2]} 41... Rh2+ {[%clk
0:00:17.8]} 42. Kg1 {[%clk 0:00:44.6]} 42... h5 {[%clk 0:00:15.2]} 43. Bf8
{[%clk 0:00:40.7]} 43... Rd2 {[%clk 0:00:12.5]} 44. Rb7+ {[%clk 0:00:40.8]}
44... Kg8 {[%clk 0:00:12.9]} 45. Ne7+ {[%clk 0:00:41.9]} 45... Nxe7 {[%clk
0:00:13.7]} 46. Bxe7 {[%clk 0:00:43.8]} 46... e3 {[%clk 0:00:11.7]} 47. Bg5
{[%clk 0:00:45.3]} 47... Bd4 {[%clk 0:00:12]} 48. Kf1 {[%clk 0:00:45]} 48...
Rf2+ {[%clk 0:00:11.6]} 49. Ke1 {[%clk 0:00:46.1]} 49... Rf5 {[%clk 0:00:12.2]}
50. Bh6 {[%clk 0:00:45.2]} 50... Bf6 {[%clk 0:00:10.9]} 51. Bxe3 {[%clk
0:00:45.2]} 51... Re5 {[%clk 0:00:11.6]} 52. Kf2 {[%clk 0:00:45.2]} 52... Rf5+
{[%clk 0:00:12]} 53. Kg2 {[%clk 0:00:46]} 53... g5 {[%clk 0:00:12.8]} 54. Bd2
{[%clk 0:00:39.7]} 54... Rd5 {[%clk 0:00:12.2]} 55. Bc1 {[%clk 0:00:38.1]} 55...
Re5 {[%clk 0:00:12.4]} 56. Kf3 {[%clk 0:00:37.4]} 56... Re6 {[%clk 0:00:10.6]}
57. Rb5 {[%clk 0:00:36.6]} 57... Be5 {[%clk 0:00:06.6]} 58. Bxg5 {[%clk
0:00:36.7]} 58... Kf7 {[%clk 0:00:07.9]} 59. Bf4 {[%clk 0:00:34.8]} 59... Bxf4
{[%clk 0:00:07.6]} 60. Kxf4 {[%clk 0:00:36.7]} 60... Kg6 {[%clk 0:00:07.8]} 61.
Rg5+ {[%clk 0:00:36.3]} 61... Kh6 {[%clk 0:00:09]} 62. Rg8 {[%clk 0:00:37.9]}
62... Ra6 {[%clk 0:00:09.1]} 63. Kg3 {[%clk 0:00:38.5]} 63... Ra3+ {[%clk
0:00:09.1]} 64. Kh4 {[%clk 0:00:38.3]} 64... Ra4+ {[%clk 0:00:10.6]} 65. Kh3
{[%clk 0:00:39.4]} 65... Kh7 {[%clk 0:00:11.6]} 66. Rg3 {[%clk 0:00:40.2]} 66...
Rc4 {[%clk 0:00:12.5]} 67. Rg5 {[%clk 0:00:41]} 67... Kh6 {[%clk 0:00:13.3]} 68.
Rg8 {[%clk 0:00:42.6]} 68... Rc6 {[%clk 0:00:11.9]} 69. Kh2 {[%clk 0:00:43]}
69... h4 {[%clk 0:00:12.6]} 70. Rh8+ {[%clk 0:00:44]} 70... Kg5 {[%clk
0:00:13.1]} 71. Rg8+ {[%clk 0:00:45.5]} 71... Kh5 {[%clk 0:00:13.8]} 72. Rh8+
{[%clk 0:00:46.3]} 72... Kg4 {[%clk 0:00:15.3]} 73. Rg8+ {[%clk 0:00:48.1]}
73... Kf3 {[%clk 0:00:16.4]} 74. Kh3 {[%clk 0:00:49]} 74... Rc4 {[%clk
0:00:17.6]} 75. Rf8+ {[%clk 0:00:50]} 75... Ke3 {[%clk 0:00:18.6]} 76. Ra8
{[%clk 0:00:51.9]} 76... Kf2 {[%clk 0:00:19.1]} 77. Rf8+ {[%clk 0:00:52.5]}
77... Kg1 {[%clk 0:00:19.5]} 78. Rg8+ {[%clk 0:00:54.4]} 78... Kf2 {[%clk
0:00:20.7]} 79. Rf8+ {[%clk 0:00:55.8]} 79... Ke3 {[%clk 0:00:22.3]} 80. Rg8
{[%clk 0:00:55.7]} 80... Kf3 {[%clk 0:00:23.3]} 81. Ra8 {[%clk 0:00:55.7]} 81...
Rf4 {[%clk 0:00:23.6]} 82. Ra3+ {[%clk 0:00:56.5]} 82... Kf2 {[%clk 0:00:24.7]}
83. Ra2+ {[%clk 0:00:56.9]} 83... Kg1 {[%clk 0:00:25.7]} 84. Rd2 {[%clk
0:00:56.5]} 84... Ra4 {[%clk 0:00:25.6]} 85. Re2 {[%clk 0:00:54.9]} 85... Kf1
{[%clk 0:00:26.7]} 86. Rb2 {[%clk 0:00:55.8]} 86... Rf4 {[%clk 0:00:27]} 87. Ra2
{[%clk 0:00:56.2]} 87... Ke1 {[%clk 0:00:26.7]} 88. Rb2 {[%clk 0:00:57]} 88...
Kd1 {[%clk 0:00:27.9]} 89. Ra2 {[%clk 0:00:57.9]} 89... Ke1 {[%clk 0:00:29.2]}
90. Rb2 {[%clk 0:00:57.4]} 90... Rc4 {[%clk 0:00:29.6]} 91. Rg2 {[%clk
0:00:58.3]} 91... Kf1 {[%clk 0:00:30.6]} 92. Ra2 {[%clk 0:00:59]} 92... Rd4
{[%clk 0:00:32]} 93. Rb2 {[%clk 0:00:59.9]} 93... Rc4 {[%clk 0:00:32.8]} 94. Rd2
{[%clk 0:01:00.8]} 94... Ke1 {[%clk 0:00:33.5]} 95. Ra2 {[%clk 0:01:01.3]} 95...
Rf4 {[%clk 0:00:34.4]} 1/2-1/2

[Event "*** Titled Tuesday Blitz"]
[Site "Chess.com"]
[Date "2019.12.03"]
[Round "4"]
[White "LimeInTheCoconut"]
[Black "Kumi29"]
[Result "1/2-1/2"]
[WhiteElo "2351"]
[BlackElo "2508"]
[TimeControl "180+2"]
[EndTime "13:56:40 PST"]
[Termination "Game drawn by repetition"]

1. Nf3 {[%clk 0:03:01.8]} 1... g5 {[%clk 0:03:00.1]} 2. Nxg5 {[%clk 0:03:01.4]}
2... e5 {[%clk 0:03:01.3]} 3. d4 {[%clk 0:02:55.9]} 3... Be7 {[%clk 0:02:59.4]}
4. Nf3 {[%clk 0:02:33.9]} 4... e4 {[%clk 0:03:00.3]} 5. Ng1 {[%clk 0:02:31.9]}
5... d5 {[%clk 0:03:00.5]} 6. c4 {[%clk 0:02:32.5]} 6... Nf6 {[%clk 0:02:50.1]}
7. Nc3 {[%clk 0:02:32.7]} 7... c6 {[%clk 0:02:46.2]} 8. Bg5 {[%clk 0:02:32.1]}
8... Rg8 {[%clk 0:02:39.8]} 9. Bxf6 {[%clk 0:02:32.5]} 9... Bxf6 {[%clk
0:02:40.4]} 10. e3 {[%clk 0:02:32.8]} 10... Be6 {[%clk 0:02:35.9]} 11. Qb3
{[%clk 0:02:24.9]} 11... Nd7 {[%clk 0:02:22]} 12. cxd5 {[%clk 0:02:20.4]} 12...
cxd5 {[%clk 0:02:22.7]} 13. Nge2 {[%clk 0:02:09.4]} 13... Nb6 {[%clk 0:02:16]}
14. Nf4 {[%clk 0:02:08.7]} 14... Rc8 {[%clk 0:02:09.3]} 15. Bb5+ {[%clk
0:02:06.2]} 15... Kf8 {[%clk 0:02:08.3]} 16. Qa3+ {[%clk 0:01:45]} 16... Be7
{[%clk 0:02:04.2]} 17. Qxa7 {[%clk 0:01:41.5]} 17... Qc7 {[%clk 0:01:36.8]} 18.
Na4 {[%clk 0:01:12.9]} 18... Bb4+ {[%clk 0:01:28.1]} 19. Kf1 {[%clk 0:01:08]}
19... Nc4 {[%clk 0:00:48]} 20. Nc5 {[%clk 0:00:59.3]} 20... Nd2+ {[%clk
0:00:40.9]} 21. Kg1 {[%clk 0:00:35.9]} 21... Nf3+ {[%clk 0:00:41.2]} 22. Kf1
{[%clk 0:00:36.8]} 22... Nd2+ {[%clk 0:00:42.7]} 23. Kg1 {[%clk 0:00:38.1]}
23... Bxc5 {[%clk 0:00:33.6]} 24. Qxc5+ {[%clk 0:00:35]} 24... Qxc5 {[%clk
0:00:34.6]} 25. dxc5 {[%clk 0:00:36.9]} 25... Rxc5 {[%clk 0:00:35.9]} 26. Be2
{[%clk 0:00:28.9]} 26... Rc2 {[%clk 0:00:32.6]} 27. b3 {[%clk 0:00:29.6]} 27...
Ke7 {[%clk 0:00:22.1]} 28. h4 {[%clk 0:00:30.3]} 28... Kd6 {[%clk 0:00:23]} 29.
Kh2 {[%clk 0:00:29.1]} 29... Bd7 {[%clk 0:00:19.2]} 30. Rhc1 {[%clk 0:00:26.6]}
30... Rgc8 {[%clk 0:00:20.2]} 31. Rxc2 {[%clk 0:00:24.9]} 31... Rxc2 {[%clk
0:00:21.4]} 32. Kg3 {[%clk 0:00:21.5]} 32... h6 {[%clk 0:00:20]} 33. Bh5 {[%clk
0:00:18.5]} 33... f6 {[%clk 0:00:18.9]} 34. Ne2 {[%clk 0:00:17.3]} 34... Rb2
{[%clk 0:00:18]} 35. Nd4 {[%clk 0:00:16.9]} 35... Bc6 {[%clk 0:00:18.6]} 36. a4
{[%clk 0:00:14.8]} 36... Nxb3 {[%clk 0:00:15.6]} 37. Nxb3 {[%clk 0:00:14]} 37...
Rxb3 {[%clk 0:00:17.5]} 38. a5 {[%clk 0:00:12.3]} 38... Rb2 {[%clk 0:00:18.1]}
39. Rd1 {[%clk 0:00:11]} 39... Ke5 {[%clk 0:00:18.9]} 40. f4+ {[%clk 0:00:10.2]}
40... exf3 {[%clk 0:00:19.7]} 41. gxf3 {[%clk 0:00:12.1]} 41... Ra2 {[%clk
0:00:20.1]} 42. Rd4 {[%clk 0:00:09.1]} 42... Rxa5 {[%clk 0:00:19.6]} 43. f4+
{[%clk 0:00:10.5]} 43... Kd6 {[%clk 0:00:19.9]} 44. Bf7 {[%clk 0:00:09.3]} 44...
Ra3 {[%clk 0:00:20.2]} 45. Kf3 {[%clk 0:00:08.7]} 45... Kc5 {[%clk 0:00:20.1]}
46. Rd1 {[%clk 0:00:08.5]} 46... b5 {[%clk 0:00:21.3]} 47. Rc1+ {[%clk
0:00:09.1]} 47... Kd6 {[%clk 0:00:22.7]} 48. Rb1 {[%clk 0:00:09.1]} 48... Ra4
{[%clk 0:00:24.1]} 49. Bg6 {[%clk 0:00:07.7]} 49... Rc4 {[%clk 0:00:22.6]} 50.
Bd3 {[%clk 0:00:08.2]} 50... Rc5 {[%clk 0:00:23.2]} 51. Kg4 {[%clk 0:00:08.2]}
51... Rc3 {[%clk 0:00:22]} 52. Bxb5 {[%clk 0:00:08.5]} 52... Rxe3 {[%clk
0:00:22.7]} 53. Bxc6 {[%clk 0:00:08.9]} 53... Kxc6 {[%clk 0:00:24.2]} 54. Kf5
{[%clk 0:00:10.8]} 54... d4 {[%clk 0:00:17.6]} 55. Kxf6 {[%clk 0:00:09.8]} 55...
d3 {[%clk 0:00:19.1]} 56. Kg6 {[%clk 0:00:10.5]} 56... Kd5 {[%clk 0:00:19.3]}
57. f5 {[%clk 0:00:11.3]} 57... Ke5 {[%clk 0:00:16.3]} 58. Rb5+ {[%clk
0:00:11.5]} 58... Ke4 {[%clk 0:00:16.6]} 59. Rb4+ {[%clk 0:00:11.1]} 59... Kd5
{[%clk 0:00:15.1]} 60. Rb2 {[%clk 0:00:09]} 60... Re2 {[%clk 0:00:14.9]} 61. Rb8
{[%clk 0:00:08.9]} 61... d2 {[%clk 0:00:14.4]} 62. Rd8+ {[%clk 0:00:09.6]} 62...
Ke5 {[%clk 0:00:16]} 63. Re8+ {[%clk 0:00:10.4]} 63... Kd6 {[%clk 0:00:16.8]}
64. Rd8+ {[%clk 0:00:11.7]} 64... Ke7 {[%clk 0:00:18]} 65. Rd3 {[%clk
0:00:12.6]} 65... Rg2+ {[%clk 0:00:18.3]} 66. Kxh6 {[%clk 0:00:14]} 66... Kf6
{[%clk 0:00:19.9]} 67. Rd5 {[%clk 0:00:12.7]} 67... Rh2 {[%clk 0:00:14.4]} 68.
h5 {[%clk 0:00:13.9]} 68... Rg2 {[%clk 0:00:15.9]} 69. Kh7 {[%clk 0:00:11.3]}
69... Rg5 {[%clk 0:00:16.9]} 70. h6 {[%clk 0:00:11.8]} 70... Rxf5 {[%clk
0:00:15.2]} 71. Rxd2 {[%clk 0:00:12.7]} 71... Rg5 {[%clk 0:00:12.5]} 72. Rf2+
{[%clk 0:00:10.6]} 72... Ke7 {[%clk 0:00:13.7]} 73. Rf3 {[%clk 0:00:10.7]} 73...
Ke8 {[%clk 0:00:14.6]} 74. Kh8 {[%clk 0:00:11.3]} 74... Ke7 {[%clk 0:00:15.7]}
75. h7 {[%clk 0:00:12.7]} 75... Rg1 {[%clk 0:00:16.4]} 76. Ra3 {[%clk
0:00:12.4]} 76... Kf7 {[%clk 0:00:16.9]} 77. Ra7+ {[%clk 0:00:13.4]} 77... Kf8
{[%clk 0:00:18.1]} 78. Ra8+ {[%clk 0:00:13.9]} 78... Kf7 {[%clk 0:00:19.5]} 79.
Rg8 {[%clk 0:00:13.1]} 79... Ra1 {[%clk 0:00:20.2]} 80. Rg7+ {[%clk 0:00:14.1]}
80... Kf6 {[%clk 0:00:18.6]} 81. Rg8 {[%clk 0:00:13.6]} 81... Kf7 {[%clk
0:00:19.3]} 82. Rb8 {[%clk 0:00:13.4]} 82... Rg1 {[%clk 0:00:18.1]} 83. Rb2
{[%clk 0:00:11.7]} 83... Rg3 {[%clk 0:00:17.7]} 84. Rf2+ {[%clk 0:00:12.4]}
84... Ke8 {[%clk 0:00:18.5]} 85. Rf4 {[%clk 0:00:13.6]} 85... Ke7 {[%clk
0:00:19.1]} 86. Rf5 {[%clk 0:00:14.7]} 86... Rg1 {[%clk 0:00:18.3]} 87. Ra5
{[%clk 0:00:15.3]} 87... Kf7 {[%clk 0:00:18.8]} 88. Ra7+ {[%clk 0:00:16.1]}
88... Kf8 {[%clk 0:00:19.4]} 89. Ra8+ {[%clk 0:00:17.5]} 89... Kf7 {[%clk
0:00:20.5]} 90. Ra7+ {[%clk 0:00:19.1]} 1/2-1/2